Workbook

Sheet Input Sheet
C1: Input Sheet
A3: This brochure is set up as a read only document - go up to File and click Save As - rename the document in order to manipulate the data
A4: All areas in red on Set-Up Sheet contain a formula and are calculated automatically -
A5: these fields do not appear on the Input Sheet
A6: Blue | B6: All BLUE cells - Information is transferred from input sheet onto Brochures
A7: Red | B7: All RED cells - information is set up to automatically calculate formulas
A10: Summary Section | E10: Address | F10: 649 N Cummings
A11: Price | B11: 1095000 | E11: City, State | F11: Boyle Heights, CA
A12: Down Pmt % | B12: 0.35 | E12: Property Type | F12: Income Property
A13: Interest Rate | B13: 0.0675 | E13: APN: | F13: 5175-031-010
A14: Number of Units | B14: 3
A15: Year Built | B15: 1905 | E15: Current Annualized Operating Data:
A16: Approx. Lot SF | B16: 5071
A17: Approx. RSF: | B17: 3245 | E17: Vacancy Reserve @ ( input %) | G17: will calculate $
A18: # Parking Spaces | B18: 4 | E18: Equity Build Up
E19: Total Return
E20: Proposed Financing | F20: New 1st TD proposed at 3.5% fixed 30 yrs amtz. Over 30
F22: information below not on CURRENT RENT set up
B23: Current Rental Income | E23: input $ for Rent-Range only | F23: Market Rental Income
A24: # Units | B24: Type | C24: Apx SF | D24: Rent/Unit | E24: Income | F24: Rent/Unit | G24: Income
A26: 1 | D26: 3790 | E26: 3790 | F26: 4000
A27: 1 | D27: 1141.84 | E27: 1141.84 | F27: 1700
A28: 1 | D28: 1891.4 | E28: 1891.4 | F28: 2400
A30: total; | D30: =SUM(D26:D29) -> 6823.24
E31: =SUM(E26:E30) -> 6823.24 | F31: =SUM(F26:F30) -> 8100
A33: Laundry | B33: 0 | E33: Laundry | F33: 0
A34: Other Income | E34: Other Income
A35: Annualized Expenses
A36: Property Tax | B36: =B11*1.125% -> 12318.75
A37: Insurance | B37: 2800
A38: Utilities & rubbish | B38: 0
A39: Gardening | B39: 0
A40: Repairs & Maintenance | B40: 0
A41: Internet | B41: 0
A42: Off Site Mgt
A45: Rubbish
A46: Legal/Acct. | B46: 0
A47: Misc. & Res. | B47: 2000

Sheet Current & Market Rents
A1: Picture
H2: ='Input Sheet'!F10 -> 649 N Cummings
H3: ='Input Sheet'!F11 -> Boyle Heights, CA
H4: ='Input Sheet'!F12 -> Income Property
F5: APN: | G5: 5089-021-031
A6: 118 N Larchmont Blvd. Los Angeles, Ca 90004 | I6: DRE 01379619
A7: Summary | E7: Annualized Operating Data | H7: CURRENT | I7: PROFORMA
A8: Price: | D8: ='Input Sheet'!B11 -> 1095000 | E8: Scheduled Gross Income: | H8: =SUM(E40*12) -> 81878.88 | I8: =SUM(G40*12) -> 109200
A9: Down Pmt @ | C9: ='Input Sheet'!B12 -> 0.35 | D9: =D8*C9 -> 383250 | E9: Vacancy Reserve @ | G9: ='Input Sheet'!F17 -> 0 | H9: =-H8*G9 -> 0 | I9: =-SUM(I8*G9) -> 0
A10: First Loan Amount: | D10: =D8*(1-C9) -> 711750 | E10: Gross Operating Income: | H10: =SUM(H8:H9) -> 81878.88 | I10: =SUM(I8:I9) -> 109200
A11: Interest Rate: | D11: ='Input Sheet'!B13 -> 0.0675 | E11: Expenses: | H11: =-SUM(I27:I38) -> -17118.75 | I11: =-I39 -> -17118.75
A12: Price per unit | D12: =D8/3 -> 365000 | E12: Net Operating Income: | H12: =SUM(H10:H11) -> 64760.13 | I12: =SUM(I10:I11) -> 92081.25
A13: GRM: | D13: =D8/H8 -> 13.37341204 | E13: Estimated Loan Payments: | H13: =PMT(0.0325,360/12,D10) -> -37496.21203 | I13: =H13 -> -37496.21203
E14: Pre-Tax Cash Flow: | H14: =SUM(H12:H13) -> 27263.91797 | I14: =SUM(I12:I13) -> 54585.03797
A15: CAP: | B15: =SUM(H12/D8) -> 0.05914167123 | C15: PROF. | D15: =SUM(I12/D8) -> 0.08409246575 | E15: Cash on Cash Return: | H15: =(H14)/D9 -> 0.0711387292 | I15: =SUM(I14/D9) -> 0.1424267135
A16: Year Built: | D16: ='Input Sheet'!B15 -> 1905 | E16: Equity Build Up: | H16: ='Input Sheet'!F18 -> 0
A17: Approx. Lot SF | D17: ='Input Sheet'!B16 -> 5071 | E17: Total Return: | H17: ='Input Sheet'!F19 -> 0
A18: Approx. RSF: | D18: ='Input Sheet'!B17 -> 3245
A19: Cost per RSF: | D19: =D8/D18 -> 337.4422188 | E19: Proposed Financing:
A20: Parking spaces | D20: ='Input Sheet'!B18 -> 4 | E20: ='Input Sheet'!F20 -> New 1st TD proposed at 3.5% fixed 30 yrs amtz. Over 30
A21: Zoning
B22: Scheduled Income
C24: CURRENT | F24: PROFORMA
A26: # Units | B26: Type | C26: Apx. SF | D26: Rent/Unit | E26: Income | F26: Rent/Unit | G26: Income | H26: Est. Annualized Expenses
H27: Taxes | I27: ='Input Sheet'!B36 -> 12318.75
B28: 3+2 | D28: 3790 | E28: 3790 | G28: 3850 | H28: Insurance | I28: ='Input Sheet'!B37 -> 2800
B29: 2+1 | D29: 1141.84 | E29: 1141.84 | G29: 3000 | H29: Utilities
B30: 3+1 | D30: 1891.4 | E30: 1891.4 | G30: 2250 | H30: Repairs & Maint. | I30: ='Input Sheet'!B40 -> 0
H31: ='Input Sheet'!A47 -> Misc. & Res. | I31: ='Input Sheet'!B47 -> 2000
H32: ='Input Sheet'!A42 -> Off Site Mgt | I32: ='Input Sheet'!B42 -> 0
H33: ='Input Sheet'!A45 -> Rubbish
H34: Gardening | I34: ='Input Sheet'!B39 -> 0
A37: Total Scheduled Monthly Rent: | E37: =SUM(E28:E36) -> 6823.24 | G37: =SUM(G28:G36) -> 9100
B38: Laundry: | E38: ='Input Sheet'!B33 -> 0 | G38: ='Input Sheet'!F33 -> 0
B39: Other Income | E39: ='Input Sheet'!B34 -> 0 | G39: ='Input Sheet'!F34 -> 0 | H39: Total Expenses: | I39: =SUM(I27:I38) -> 17118.75
A40: Monthly Scheduled Gross Income: | E40: =SUM(E37:E39) -> 6823.24 | G40: =SUM(G37:G38) -> 9100 | H40: Per Net SF: | I40: =-I39/D18 -> -5.275423729
A41: Annual Gross Income: | E41: =SUM(E40*12) -> 81878.88 | G41: =SUM(G40*12) -> 109200
H42: % of Gross: | I42: =SUM(I39/I8) -> 0.1567651099
C43: PROPERTY DESCRIPTION:
A44: TREMENDOUS UPSIDE! This well-maintained triplex offers a rare opportunity for significant rental growth in the rapidly evolving Boyle Heights market. The property features approximately 3,245 sq ft of building area on a 5,071 sq ft corner lot, providing excellent ingress and egress for parking. The front building consists of two units—a 3-bedroom, 1-bath and a 2-bedroom, 1-bath—while the detached rear unit offers 3 bedrooms and 2 bathrooms and was fully remodeled approximately 4 years ago. This versatile unit mix is highly desirable for maximizing rental income and attracting long-term tenants. Tenants share the driveway for parking and are responsible for maintaining the parking area. Tenants also pay all utilities, keeping landlord expenses minimal and limited to property taxes and insurance. With low operating costs and strong income potential, this property is an efficient, income-producing investment. Located in a quiet residential neighborhood, the property offers a unique blend of suburban comfort with close proximity to ongoing development and appreciation throughout Boyle Heights. BONUS OPPORTUNITY: The adjacent property at 645 N Cummings is also available for sale, presenting a rare chance to acquire multiple income properties in a prime location. Additional details available upon request.

Sheet Sheet1

Sheet Rent Roll
A1: Rent Roll -
A3: Unit # | B3: Tenant | C3: Tenant Name | D3: Recurring Chgs | E3: Deposit Held | F3: Lease Expires | G3: Rent/SF
A5: 1 | C5: Occupied | D5: 3600
A6: 2 | C6: Occupied | D6: 3600
A7: 3 | C7: Occupied | D7: 3800
A8: 4 | C8: Occupied | D8: 3500
C9: Total | D9: =SUM(D4:D8) -> 14500 | E9: =SUM(E4:E8) -> 0
A12: Average | C12: =AVERAGE(D4:D8) -> 3625
